Cogmind - Beta 15 @@@ ROGUE MODE // 2025.06.03 @ 22:47:03 Player: CL-1C0 Result: Self-destructed Performance ------------- Evolutions (3) 1500 Regions Visited (5) 1000 Robots Destroyed (3) 15 Value Destroyed (18) 18 Prototype IDs (0) 0 Alien Tech Used (0) 0 Bonus (200) 200 TOTAL SCORE: 2733 Bonus ------- Pacifist 200 Cogmind --------- Core Integrity 569/700 Matter 284/300 Energy 0/100 System Corruption 0% Temperature Cool (4) Movement Flying (32) Location -7/Factory Parts ------- > --- POWER (1) -------- (None) > --- PROPULSION (4) --- VTOL Module Cesium-ion Thruster > --- UTILITY (6) ------ Improved Sensor Array Improved Signal Interpreter > --- WEAPON (2) ------- Greatsword > --- INVENTORY (5) ---- Armored Treads Maul Peak State ------------ > --- POWER ------------ (None) > --- PROPULSION ------- VTOL Module Cesium-ion Thruster > --- UTILITY ---------- Improved Sensor Array Improved Signal Interpreter > --- WEAPON ----------- Greatsword > --- INVENTORY -------- Armored Treads Maul [Rating: 19] Favorites ----------- Power Ion Engine Engine Ion Engine Propulsion Advanced Treads Treads Advanced Treads Leg Aluminum Leg Flight Unit VTOL Module Utility Improved Signal Interpreter Device Improved Sensor Array Storage Small Storage Unit Processor Improved Signal Interpreter Weapon Maul Energy Gun EM Pulse Gun Impact Weapon Maul Slashing Weapon Greatsword Build | -11 -10 -9 -9 -8 -7 ------- Run | Yrd Mat Mat Sto Mat Fac Slots Evolved 6 | . . 2 . 2 2 Power . | . . . . . . Propulsion 2 | . . 2 . . . Utility 4 | . . . . 2 2 Weapon . | . . . . . . Parts Attached 18 | 2 . 9 . 3 4 Power . | . . . . . . Engine . | . . . . . . Core . | . . . . . . Reactor . | . . . . . . Propulsion 14 | 2 . 8 . 3 1 Treads 6 | 2 . 4 . . . Leg . | . . . . . . Wheel . | . . . . . . Hover . | . . . . . . Flight 8 | . . 4 . 3 1 Utility 2 | . . . . . 2 Device 1 | . . . . . 1 Storage . | . . . . . . Processor 1 | . . . . . 1 Hackware . | . . . . . . Protection . | . . . . . . Artifact . | . . . . . . Weapon 2 | . . 1 . . 1 Energy Gun . | . . . . . . Energy Cannon . | . . . . . . Ballistic Gun . | . . . . . . Ballistic Cannon . | . . . . . . Launcher . | . . . . . . Special Weapon . | . . . . . . Impact Weapon 1 | . . 1 . . . Slashing Weapon 1 | . . . . . 1 Piercing Weapon . | . . . . . . Special Melee Weapon . | . . . . . . Unidentified Prototypes . | . . . . . . Parts Lost 8 | . 2 4 . . 2 Power . | . . . . . . Propulsion 8 | . 2 4 . . 2 Utility . | . . . . . . Weapon . | . . . . . . Highest Loss Streak 4 | . 2 4 . . 2 To Critical Strikes . | . . . . . . Average Backups 1 | 5 . 1 3 1 1 Power . | 1 . . . . . Propulsion 1 | 3 . 1 3 1 1 Utility . | . . . . . . Weapon . | 1 . . . . . Tool/Special . | . . . . . . Unused Backups 1 | . . . . . 1 Power . | . . . . . . Propulsion 1 | . . . . . 1 Utility . | . . . . . . Weapon . | . . . . . . Tool/Special . | . . . . . . Average Slot Usage (%) 37 | . 26 43 55 29 30 Treads 19 | . 26 18 44 6 . Flight 10 | . . 18 . 13 17 Impact Weapon 6 | . . 7 11 9 5 Peak Build Rating 19 | 6 2 14 14 11 19 Average Rating 8 | 4 1 8 14 7 10 On Entrance 7 | 6 2 . 14 14 8 Naked Turns 7 | . 7 . . . . Heaviest Build 6 | . . 3 3 3 6 Greatest Support 88 | 3 40 88 3 12 12 Greatest Overweight (x) . | . . . . . . Average Overweight (x) . | . . . . . . Largest Inventory Capacity 8 | 8 5 5 5 5 5 Average Capacity 5 | 6 5 5 5 5 5 Most Carried 5 | 5 4 3 3 3 2 Average Carried 1 | 2 . 1 3 1 1 Final Capacity 5 | 5 5 5 5 5 5 Final Carried 4 | . 4 3 3 1 2 Class Distribution -------------------- 68% | Mutant 31% | Sprinter Dominant Class ---------------- Mutant | -10/Materials Mutant | -9/Materials Mutant | -9/Storage Sprinter | -8/Materials Sprinter | -7/Factory Resources | -11 -10 -9 -9 -8 -7 ----------- Run | Yrd Mat Mat Sto Mat Fac Matter Collected 315 | 195 . 45 25 . 50 Remotely . | . . . . . . Salvage Created 56 | . . 5 1 . 50 Parts 6 | . . 2 3 . 1 Haulers Intercepted 1 | . . . . . 1 Recyclers Shooed . | . . . . . . Parts Field Recycled . | . . . . . . Retrieved Matter . | . . . . . . Parts Self-Destructed . | . . . . . . Prevented . | . . . . . . Kills | -11 -10 -9 -9 -8 -7 ------- Run | Yrd Mat Mat Sto Mat Fac Combat Hostiles Destroyed . | . . . . . . Classes Destroyed 3 | . . 1 1 . 1 Worker 1 | . . 1 . . . Builder 1 | . . . 1 . . Hauler 1 | . . . . . 1 Best Kill Streak 1 | . . 1 1 . 1 Combat Bots Only . | . . . . . . Max Kills in Single Turn 1 | . . 1 1 . 1 Gunslinging . | . . . . . . Exploded . | . . . . . . Melee . | . . . . . . Uniques/NPCs Destroyed . | . . . . . . Combat | -11 -10 -9 -9 -8 -7 -------- Run | Yrd Mat Mat Sto Mat Fac Hostile Shots Fired 287 | . 60 114 43 . 70 Missed 132 | . 18 54 21 . 39 Hits 155 | . 42 60 22 . 31 Projectile 155 | . 42 60 22 . 31 Damage Taken 1573 | . 508 594 218 . 253 Core 521 | . 213 101 76 . 131 Absorbed by Shields . | . . . . . . Core Remaining (%) 67 | 100 14 . 55 100 . Volleys Fired . | . . . . . . Largest . | . . . . . . Hottest . | . . . . . . Shots Fired . | . . . . . . Gun . | . . . . . . Cannon . | . . . . . . Launcher . | . . . . . . Special . | . . . . . . Kinetic . | . . . . . . Thermal . | . . . . . . Explosive . | . . . . . . Electromagnetic . | . . . . . . Robot Hit Streak . | . . . . . . Robot Miss Streak . | . . . . . . Penetration Max . | . . . . . . Secondary Targets . | . . . . . . Shots Hit Robots 3 | . . . . . 3 Core Hits 1 | . . . . . 1 Critical Kills . | . . . . . . Critical Parts Destroyed . | . . . . . . Critical Strikes . | . . . . . . Melee Attacks 6 | . . 1 . . 5 Impact 3 | . . 1 . . 2 Slashing 3 | . . . . . 3 Piercing . | . . . . . . Sneak Attacks 1 | . . . . . 1 Combat Hostiles . | . . . . . . Follow-up Attacks . | . . . . . . Damage Inflicted 255 | . 3 4 3 . 245 Guns . | . . . . . . Cannons . | . . . . . . Explosions . | . . . . . . Melee 245 | . . . . . 245 Ramming 10 | . 3 4 3 . . Kinetic . | . . . . . . Thermal . | . . . . . . Explosive . | . . . . . . Electromagnetic . | . . . . . . Impact . | . . . . . . Slashing 245 | . . . . . 245 Piercing . | . . . . . . Highest Corruption 2 | . . 2 2 . . Average Corruption 1 | . . 1 2 . . Corruption Purged . | . . . . . . Corruption Blocked . | . . . . . . Effects 2 | . . . 2 . . Message Errors 1 | . . . 1 . . Matter Fused 1 | . . . 1 . . Overload Shots . | . . . . . . Overflow Damage 5 | . . . . . 5 Projectiles . | . . . . . . Explosions . | . . . . . . Melee 5 | . . . . . 5 Knockbacks . | . . . . . . Impact . | . . . . . . Kinetic . | . . . . . . Secondary . | . . . . . . Self-Inflicted Damage 1 | . . 1 . . . Shots . | . . . . . . Rammed 7 | . 5 2 . . . Targets Rammed 9 | . 5 3 1 . . Kicked . | . . . . . . Crushed 2 | . . 1 1 . . Highest Temperature . | . . . . . . Average Temperature . | . . . . . . Received Heat Transfer 570 | . 288 147 69 . 66 Siege Activations . | . . . . . . Martial Activations . | . . . . . . Shielding Activations . | . . . . . . Robots Disrupted . | . . . . . . Combat Hostiles . | . . . . . . Robots Corrupted . | . . . . . . Combat Hostiles . | . . . . . . Parts Fried . | . . . . . . Impact Corruptions . | . . . . . . Robots Melted . | . . . . . . Combat Hostiles . | . . . . . . Parts Melted . | . . . . . . Heat Transferred . | . . . . . . Parts Sabotaged . | . . . . . . Parts Stolen . | . . . . . . Parts Stripped . | . . . . . . Power Chain Reactions . | . . . . . . Alert | -11 -10 -9 -9 -8 -7 ------- Run | Yrd Mat Mat Sto Mat Fac Maximum Alert Level . | . . . . . . Low Security (%) 100 | 100 100 100 100 100 100 Level 1 . | . . . . . . Level 2 . | . . . . . . Level 3 . | . . . . . . Level 4 . | . . . . . . Level 5 . | . . . . . . High Security . | . . . . . . Max Security . | . . . . . . Peak Influence 110 | . 55 110 88 32 63 Initial 46 | . . 18 46 32 9 Average 19 | . 7 13 45 27 12 Influence Increases 371 | . 75 126 72 . 98 Destroy 0b10 Robot/NC 15 | . . 5 5 . 5 Destroy Leader 2 | . . . . . 2 Successful Hack 7 | . . . 7 . . Disable Machine 15 | . . . . . 15 Destroy Structure 2 | . . 1 . . 1 Partial Spotted 15 | . . . . . 15 Lose Combat Pursuer 315 | . 75 120 60 . 60 Influence Decreases 308 | . 30 61 104 56 57 Entered New Map 150 | . . 27 64 46 13 Time Decay 119 | . 10 25 40 10 34 Lost Part 39 | . 20 9 . . 10 Squads Dispatched 8 | . 2 3 1 . 2 Investigation 2 | . . 1 . . 1 Extermination 1 | . . . . . 1 Reinforcement 5 | . 2 2 1 . . Assault . | . . . . . . Garrison . | . . . . . . Intercept . | . . . . . . Searches Triggered . | . . . . . . Construction Impeded . | . . . . . . Haulers Reinforced . | . . . . . . Active Scanning Responses . | . . . . . . Cargo Convoy Interrupts . | . . . . . . Stealth | -11 -10 -9 -9 -8 -7 --------- Run | Yrd Mat Mat Sto Mat Fac Distress Signals 7 | . 2 4 1 . . Communications Jammed . | . . . . . . Distress Signals . | . . . . . . Times Spotted 63 | . 16 24 16 1 6 Peak Tracking Total 20 | . 11 20 12 1 6 Tactical Retreats 5 | . 1 1 1 . 2 Traps | -11 -10 -9 -9 -8 -7 ------- Run | Yrd Mat Mat Sto Mat Fac Traps Triggered . | . . . . . . Indirectly . | . . . . . . Trap Hack Attempts . | . . . . . . Triggered . | . . . . . . Disarmed . | . . . . . . Reprogrammed . | . . . . . . Reused . | . . . . . . Traps Extracted . | . . . . . . Installed . | . . . . . . Triggered . | . . . . . . Machines | -11 -10 -9 -9 -8 -7 ---------- Run | Yrd Mat Mat Sto Mat Fac Machines Disabled 1 | . . . . . 1 Max in Single Turn 1 | . . . . . 1 Machines Repaired . | . . . . . . Machines Dismantled . | . . . . . . Machines Sabotaged . | . . . . . . Overloaded Fab Kills . | . . . . . . Hacking | -11 -10 -9 -9 -8 -7 --------- Run | Yrd Mat Mat Sto Mat Fac Machines Accessed 4 | . . 1 2 . 1 Terminals 4 | . . 1 2 . 1 Fabricators . | . . . . . . Repair Stations . | . . . . . . Recycling Units . | . . . . . . Scanalyzers . | . . . . . . Garrison Access . | . . . . . . Total Hacks 8 | . . 3 3 . 2 Successful 2 | . . . 2 . . Failed 6 | . . 3 1 . 2 Catastrophic 2 | . . 1 . . 1 Database Lockouts . | . . . . . . Manual 2 | . . . . . 2 Terminals 8 | . . 3 3 . 2 Fabricators . | . . . . . . Repair Stations . | . . . . . . Recycling Units . | . . . . . . Scanalyzers . | . . . . . . Garrison Access . | . . . . . . Terminal Hacks 2 | . . . 2 . . Open Door 2 | . . . 2 . . Fabricator Hacks . | . . . . . . Repair Station Hacks . | . . . . . . Recycling Unit Hacks . | . . . . . . Scanalyzer . | . . . . . . Garrison Access Hacks . | . . . . . . Unauthorized Hacks . | . . . . . . Terminals . | . . . . . . Fabricators . | . . . . . . Repair Stations . | . . . . . . Recycling Units . | . . . . . . Scanalyzers . | . . . . . . Garrison Access . | . . . . . . Data Cores Recovered . | . . . . . . Used . | . . . . . . Hacking Detections 3 | . . 1 1 . 1 Full Trace Events 2 | . . 1 . . 1 Feedback Events 1 | . . 1 . . . Corruption 1 | . . 1 . . . Feedback Blocked . | . . . . . . Robot Schematics Acquired . | . . . . . . Robots Built . | . . . . . . Authchips . | . . . . . . Time . | . . . . . . Total Robot Build Rating . | . . . . . . Part Schematics Acquired . | . . . . . . Parts Built . | . . . . . . Authchips . | . . . . . . Time . | . . . . . . Total Part Build Rating . | . . . . . . Parts Repaired . | . . . . . . Time . | . . . . . . Parts Recycled . | . . . . . . Recycled Matter . | . . . . . . Retrieved Matter . | . . . . . . Retrieved Components . | . . . . . . Parts Scanalyzed . | . . . . . . Part Schematics Acquired . | . . . . . . Parts Damaged . | . . . . . . Bothacking | -11 -10 -9 -9 -8 -7 ------------ Run | Yrd Mat Mat Sto Mat Fac Used RIF Installer . | . . . . . . Robots Hacked . | . . . . . . Non-combat . | . . . . . . Combat . | . . . . . . Robot Hacks Applied . | . . . . . . Relay Couplers Released . | . . . . . . Fabnet Peak Effective % . | . . . . . . Robots Rewired . | . . . . . . Allies Hacked . | . . . . . . Hacks Repelled . | . . . . . . Allies | -11 -10 -9 -9 -8 -7 -------- Run | Yrd Mat Mat Sto Mat Fac Total Allies . | . . . . . . Largest Group . | . . . . . . Highest-Rated Group . | . . . . . . Highest-Rated Ally . | . . . . . . Total Orders . | . . . . . . Ally Attacks . | . . . . . . Total Damage . | . . . . . . Kills . | . . . . . . Allies Corrupted . | . . . . . . Allies Melted . | . . . . . . Intel | -11 -10 -9 -9 -8 -7 ------- Run | Yrd Mat Mat Sto Mat Fac Active Infowar (turns) 42 | . . . . . 42 Sensors 42 | . . . . . 42 Robot Analysis Total . | . . . . . . Derelict Logs Recovered . | . . . . . . Drone Launches . | . . . . . . Drone Recoveries . | . . . . . . Exploration | -11 -10 -9 -9 -8 -7 ------------- Run | Yrd Mat Mat Sto Mat Fac Turns Passed 424 | 5 81 100 90 32 116 Spaces Moved 852 | 2 122 163 177 89 299 Core 374 | 2 121 74 177 . . Treads 2 | . 1 1 . . . Legs . | . . . . . . Wheels . | . . . . . . Hover . | . . . . . . Flight 476 | . . 88 . 89 299 Fastest Speed 29 | 50 50 31 50 29 29 Average Speed 39 | 50 50 42 50 29 30 Slowest Speed 160 | 50 160 145 50 29 35 Overloaded Moves . | . . . . . . Propulsion Burnouts . | . . . . . . Robots Hopped 8 | . . 6 . . 2 Potential Cave-ins . | . . . . . . Cave-ins Triggered . | . . . . . . Exploration Rate (%) 24 | 1 43 31 40 15 16 Regions Visited 5 Branch Regions 1 Pre-discovered Areas . | . . . . . . Known Exits Taken . | . . . . . . Unknown Exits Taken 5 | 1 1 1 1 1 . Scrap Searched . | . . . . . . Spaces Dug 2 | . . 1 . . 1 Terrain Destroyed 2 | . . 1 . . 1 Melee 2 | . . 1 . . 1 Projectile . | . . . . . . AOE . | . . . . . . Terrain Rammed . | . . . . . . Walls Destroyed . | . . . . . . Machines Disabled . | . . . . . . Actions | -11 -10 -9 -9 -8 -7 --------- Run | Yrd Mat Mat Sto Mat Fac Total 908 | 7 137 182 177 96 309 Wait 18 | . 7 9 . . 2 Move 831 | 1 121 150 176 88 295 Hop 8 | . . 6 . . 2 Pick Up 9 | . 4 4 . 1 . Fast Attach 8 | . . 4 . . 4 Attach 10 | 2 . 5 . 3 . Detach 1 | . . . . . 1 Swap . | . . . . . . Drop 8 | 4 . . . 4 . Fire . | . . . . . . Melee 6 | . . 1 . . 5 Ram 1 | . . 1 . . . Kick . | . . . . . . Crush 8 | . 5 2 1 . . Escape Stasis . | . . . . . . Rewire . | . . . . . . Trap . | . . . . . . Miscellaneous . | . . . . . . Route ------- -11/Scrapyard -10/Materials -9/Materials (discovered 2 exits: [*Min] / *Sto) -9/Storage -8/Materials -7/Factory History --------- Turn | Location | Event 4 | -11/Scrapyard | Released all parts (6) 5 | -11/Scrapyard | Discovered new exit (range 1) 6 | -11/Scrapyard | Entered Materials 78 | -10/Materials | Core integrity fell below 50% 80 | -10/Materials | Discovered new exit (range 16) 86 | -10/Materials | Core integrity fell below 20% 87 | -10/Materials | Entered another Materials area 87 | -9/Materials | Evolved 2 slots: Propulsion x2 134 | -9/Materials | Discovered new exit (range 9) 170 | -9/Materials | Lost 4 parts (4n) 179 | -9/Materials | Discovered new exit (range 16) 187 | -9/Materials | Entered Storage 274 | -9/Storage | Discovered new exit (range 6) 277 | -9/Storage | Entered Materials 277 | -8/Materials | Evolved 2 slots: Utility x2 306 | -8/Materials | Discovered new exit (range 10) 309 | -8/Materials | Entered Factory 309 | -7/Factory | Evolved 2 slots: Utility x2 425 | -7/Factory | Self-destructed Last Messages --------------- 00347_ VTOL Module destroyed. 00366_ Acquired Cesium-ion Thruster. 00377_ TF Node disabled. 00377_ Imp. Sensor Array tumbles out of TF Node. 00377_ Imp. Signal Interpreter tumbles out of TF Node. 00378_ K-01 Serf pushes G-47 Trooper. 00381_ Acquired Imp. Signal Interpreter. 00383_ Acquired Imp. Sensor Array. 00386_ K-01 Serf pushes G-47 Trooper. 00398_ ALERT: Potential suspicious activity detected, Programmers report to Factory Zone 5S. 00406_ Acquired Greatsword. 00411_ Sneak attack on A-02 Transporter. 00414_ Destroyed Ion Engine. 00418_ A-02 Transporter destroyed. 00421_ Acquired 50 matter. 00425_ Connecting with Terminal... 00425_ Current location identified: Factory 00425_ ALERT: Suspicious activity at Terminal F019. Dispatching Investigation squad. Map ----- +----------------------------------------------------+ | | | | | | | | | | | | | | | | | | | | | | | ?????????????????????????????????????????????????? | | ?????????????????????????????????????????????????? | | ?????????????????????????????????????????????????? | | ?????????????????????######??????????????????????? | | ?????????????????????""T"""??##########??????????? | | ????????????????????? #??????????? | | ????????????????????? #??????????? | | ???????????????????? """ """" #??????????? | | ????????????????? """ """" #??????????? | | ???????????????? """ """" #??????????? | | ?????????????????# #??????????? | | ?????????????????# """" """" #??????????? | | ?????????????????# """" """" #??????????? | | ?????????????????# """" k """" +??????????? | | ?????????????????# @ #??????????? | | ?????????????????# t#??????????? | | ?????????????????####"""T"""###### ##??????????? | | ????????????????????##############!! #??########## | | ?????????????????????????# / # ! #?? / | | ?????????????????????????# #! #? | | ?????????????????????????# # #? | | ?????????????????????????# #r # | | ?????????????????????????# # # | | ?????????????????????????# # + | | ?????????????????????????# # ############# | | ?????????????????????????# # #??# ! | | ?????????????????????????# # #??# | | ?????????????????????????# # #??# | | ?????????????????????????# + #?## | | ?????????????????????????# # ###"#####+### | | ?????????????????????????# # | | ?????????????????????????# # | | ?????????????????????????# # | | ?????????????????????????# # ^ | | ?????????????????????????################### ^ | | ???????????????????????????????????????????### | | ?????????????????????????????????????????????# | | ?????????????????????????????????????????????# | | ?????????????????????????????????????????????# | +----------------------------------------------------+ Best States ------------- Heat Dissipation 34 Energy Generation 5 Energy Capacity 100 Matter Stores 300 Matter Capacity 300 Sight Range 16 Robot Scan Range 15 Terrain Scan Density 10 Evasion (%) 64 Recoil Reduction 2 Item Schematics ----------------- None Robot Schematics ------------------ None Fabricated ------------ Nothing Repaired ---------- Nothing Alien Tech Used ----------------- None Achievements -------------- None Challenges ------------ None Game ------ Seed PiercingDecoyMesh Manual? 0 Play Time 00:08:52 Cumulative 520.2 hours Start 2025.06.03 @ 22:39:38 End 2025.06.03 @ 22:47:03 Sessions 1 Manual Loads 0 Difficulty Rogue Special Mode None Game No. 569 Rogue 569 Adventurer 0 Explorer 0 Win Type - Total 15 Types 9/0/5/1/0/0/0/0/0/0 Lore% 82 Gallery% 82 Achievement% 82 Wizard Run 0 Options --------- Layout 0 ASCII 0 Keyboard 0 Movement Numpad Keybinds 0 Fullscreen 1 Font 18/SmallcapsGlow Map View 76x50 Zoom Use 0% Tactical HUD 1 Map Filters NONE Filters NONE Steam 1 RUN: fb5bbea6-57cc-456a-bab9-779391920eb9